Workbook

Sheet y = sinh x
B1: Taylor Polynomial Approximations
B2: to the Hyperbolic Functions
B5: This graphing utility lets you investigate
B6: the Taylor polynomial approximations
B7: to the hyperbolic sine function
B8: y = sinh (x)
B9: centered about x = 0
A12: Enter the interval for x:
B13: xMin = | C13: -4 | D13: -1
B14: xMax = | C14: 4 | D14: 3
A17: Click each item below for suggestions and investigations
B18: Item 1
B19: Item 2 | H19: Now select all the Taylor polynomials you want to see
B20: Item 3
B21: Item 4 | I21: FALSE | J21: TRUE
B22: Item 5
I24: FALSE | J24: TRUE
A25: To access/download all the DIGMath Apps for Calculus
B26: Click this link: | E26: DIGMath for Calculus | J26: TRUE
A28: Created by: Sheldon P. Gordon | I28: FALSE | J28: TRUE
A29: Farmingdale State College
A30: Development of this module was supported by the
A31: NSF's Division of Undergraduate Education
A32: under grants DUE-0310123 and DUE-0442160.
V858: =AA858 -> 0 | W858: =AA858 -> 0

Sheet y = cosh x
C1: Taylor Polynomial Approximations
C2: to the Hyperbolic Functions
C4: This graphing utility lets you investigate
C5: the Taylor polynomial approximations
C6: to the hyperbolic cosine function
C7: y = cosh (x)
C8: centered about x = 0
B11: Enter the interval for x:
D12: xMin = | E12: -4
D13: xMax = | E13: 4
D17: Click each item below for suggestions and investigations
D18: Item 1 | I18: Now select all the Taylor polynomials you want to see
D19: Item 2
D20: Item 3 | J20: FALSE | K20: TRUE
D21: Item 4
D22: Item 5
J23: TRUE | K23: TRUE
A24: To access/download all the DIGMath Apps for Calculus
A25: Click this link: | D25: DIGMath for Calculus | J25: FALSE | K25: TRUE
A27: Created by: Sheldon P. Gordon | J27: FALSE | K27: TRUE
A28: Farmingdale State College
A29: Development of this module was supported by the
A30: NSF's Division of Undergraduate Education
A31: under grants DUE-0310123 and DUE-0442160.

Sheet Sheet1
A1: Sinh | J1: cosh
A2: =aa -> -4 | B2: =SINH(A2) -> -27.28992 | C2: =aa -> -4.00000 | D2: =C2+C2^3/6+C2^5/120+C2^7/5040 -> -26.45079 | F2: Linear | J2: =aaa -> -4 | K2: =COSH(J2) -> 27.30823 | L2: =aaa -> -4.00000 | M2: =1+L2^2/2+L2^4/24+L2^6/720+L2^8/5040/8 -> 26.98095 | O2: Quadratic
A3: =A2+(bb-aa)/200 -> -3.96 | B3: =SINH(A3) -> -26.21913 | C3: =IF('y = sinh x'!I$28=FALSE,aa,C2+(bb-aa)/200) -> -4 | D3: =C3+C3^3/6+C3^5/120+C3^7/5040 -> -26.45079 | F3: =aa -> -4 | G3: =F3 -> -4 | J3: =J2+(bbb-aaa)/200 -> -3.96 | K3: =COSH(J3) -> 26.23819 | L3: =IF('y = cosh x'!J$27=FALSE,aaa,L2+(bbb-aaa)/200) -> -4 | M3: =1+L3^2/2+L3^4/24+L3^6/720+L3^8/5040/8 -> 26.98095 | O3: =aaa -> -4 | P3: =1+O3^2/2 -> 9
A4: -3.92 | B4: -25.19030 | C4: =IF('y = sinh x'!I$28=FALSE,aa,C3+(bb-aa)/200) -> -4 | D4: -26.45079 | F4: =IF('y = sinh x'!I21=TRUE,bb,aa) -> -4 | G4: =F4 -> -4 | J4: -3.92 | K4: 25.21014 | L4: =IF('y = cosh x'!J$27=FALSE,aaa,L3+(bbb-aaa)/200) -> -4 | M4: 26.98095 | O4: =IF('y = cosh x'!J20=FALSE,aaa,aaa+(bbb-aaa)/2) -> -4 | P4: =1+O4^2/2 -> 9
A5: -3.88 | B5: -24.20178 | C5: =IF('y = sinh x'!I$28=FALSE,aa,C4+(bb-aa)/200) -> -4 | D5: -26.45079 | J5: -3.88 | K5: 24.22243 | L5: =IF('y = cosh x'!J$27=FALSE,aaa,L4+(bbb-aaa)/200) -> -4 | M5: 26.98095 | O5: =IF('y = cosh x'!J20=FALSE,aaa,bbb) -> -4 | P5: =1+O5^2/2 -> 9
A6: -3.84 | B6: -23.25199 | C6: =IF('y = sinh x'!I$28=FALSE,aa,C5+(bb-aa)/200) -> -4 | D6: -26.45079 | F6: cubic | J6: -3.84 | K6: 23.27348 | L6: =IF('y = cosh x'!J$27=FALSE,aaa,L5+(bbb-aaa)/200) -> -4 | M6: 26.98095
A7: -3.8 | B7: -22.33941 | C7: =IF('y = sinh x'!I$28=FALSE,aa,C6+(bb-aa)/200) -> -4 | D7: -26.45079 | F7: =aa -> -4 | G7: =F7+F7^3/3 -> -25.33333333 | J7: -3.8 | K7: 22.36178 | L7: =IF('y = cosh x'!J$27=FALSE,aaa,L6+(bbb-aaa)/200) -> -4 | M7: 26.98095 | O7: Quartic
A8: -3.76 | B8: -21.46257 | C8: =IF('y = sinh x'!I$28=FALSE,aa,C7+(bb-aa)/200) -> -4 | D8: -26.45079 | F8: =IF('y = sinh x'!I$24=FALSE,aa,aa+(bb-aa)/3) -> -4 | G8: =F8+F8^3/3 -> -25.33333333 | J8: -3.76 | K8: 21.48585 | L8: =IF('y = cosh x'!J$27=FALSE,aaa,L7+(bbb-aaa)/200) -> -4 | M8: 26.98095 | O8: =aaa -> -4 | P8: =1+O8^2/2+O8^4/24 -> 19.66666667
A9: -3.72 | B9: -20.62008 | C9: =IF('y = sinh x'!I$28=FALSE,aa,C8+(bb-aa)/200) -> -4 | D9: -26.45079 | F9: =IF('y = sinh x'!I$24=FALSE,aa,aa+(bb-aa)*2/3) -> -4 | G9: =F9+F9^3/3 -> -25.33333333 | J9: -3.72 | K9: 20.64431 | L9: =IF('y = cosh x'!J$27=FALSE,aaa,L8+(bbb-aaa)/200) -> -4 | M9: 26.98095 | O9: =IF('y = cosh x'!J$23=FALSE,aaa,aaa+(bbb-aaa)/4) -> -2 | P9: =1+O9^2/2+O9^4/24 -> 3.666666667
A10: -3.68 | B10: -19.81059 | C10: =IF('y = sinh x'!I$28=FALSE,aa,C9+(bb-aa)/200) -> -4 | D10: -26.45079 | F10: =IF('y = sinh x'!I$24=FALSE,aa,aa+(bb-aa)*3/3) -> -4 | G10: -25.33333333 | J10: -3.68 | K10: 19.83581 | L10: =IF('y = cosh x'!J$27=FALSE,aaa,L9+(bbb-aaa)/200) -> -4 | M10: 26.98095 | O10: =IF('y = cosh x'!J$23=FALSE,aaa,aaa+(bbb-aaa)*2/4) -> 0 | P10: =1+O10^2/2+O10^4/24 -> 1
A11: -3.64 | B11: -19.03279 | C11: =IF('y = sinh x'!I$28=FALSE,aa,C10+(bb-aa)/200) -> -4 | D11: -26.45079 | J11: -3.64 | K11: 19.05904 | L11: =IF('y = cosh x'!J$27=FALSE,aaa,L10+(bbb-aaa)/200) -> -4 | M11: 26.98095 | O11: =IF('y = cosh x'!J$23=FALSE,aaa,aaa+(bbb-aaa)*3/4) -> 2 | P11: =1+O11^2/2+O11^4/24 -> 3.666666667
A12: -3.6 | B12: -18.28546 | C12: =IF('y = sinh x'!I$28=FALSE,aa,C11+(bb-aa)/200) -> -4 | D12: -26.45079 | F12: 5th degree | J12: -3.6 | K12: 18.31278 | L12: =IF('y = cosh x'!J$27=FALSE,aaa,L11+(bbb-aaa)/200) -> -4 | M12: 26.98095 | O12: =IF('y = cosh x'!J$23=FALSE,aaa,bbb) -> 4 | P12: =1+O12^2/2+O12^4/24 -> 19.66666667
A13: -3.56 | B13: -17.56738 | C13: =IF('y = sinh x'!I$28=FALSE,aa,C12+(bb-aa)/200) -> -4 | D13: -26.45079 | F13: =aa -> -4 | G13: =F13+F13^3/6+F13^5/120 -> -23.2 | J13: -3.56 | K13: 17.59582 | L13: =IF('y = cosh x'!J$27=FALSE,aaa,L12+(bbb-aaa)/200) -> -4 | M13: 26.98095
A14: -3.52 | B14: -16.87741 | C14: =IF('y = sinh x'!I$28=FALSE,aa,C13+(bb-aa)/200) -> -4 | D14: -26.45079 | F14: =IF('y = sinh x'!I$26=FALSE,aa,aa+(bb-aa)/5) -> -4 | G14: =F14+F14^3/6+F14^5/120 -> -23.2 | J14: -3.52 | K14: 16.90701 | L14: =IF('y = cosh x'!J$27=FALSE,aaa,L13+(bbb-aaa)/200) -> -4 | M14: 26.98095
A15: -3.48 | B15: -16.21446 | C15: =IF('y = sinh x'!I$28=FALSE,aa,C14+(bb-aa)/200) -> -4 | D15: -26.45079 | F15: =IF('y = sinh x'!I$26=FALSE,aa,aa+(bb-aa)*2/5) -> -4 | G15: -23.2 | J15: -3.48 | K15: 16.24526 | L15: =IF('y = cosh x'!J$27=FALSE,aaa,L14+(bbb-aaa)/200) -> -4 | M15: 26.98095 | O15: 6th degree
A16: -3.44 | B16: -15.57745 | C16: =IF('y = sinh x'!I$28=FALSE,aa,C15+(bb-aa)/200) -> -4 | D16: -26.45079 | F16: =IF('y = sinh x'!I$26=FALSE,aa,aa+(bb-aa)*3/5) -> -4 | G16: -23.2 | J16: -3.44 | K16: 15.60951 | L16: =IF('y = cosh x'!J$27=FALSE,aaa,L15+(bbb-aaa)/200) -> -4 | M16: 26.98095 | O16: =aaa -> -4 | P16: =1+O16^2/2+O16^4/24+O16^6/720 -> 25.35555556
A17: -3.4 | B17: -14.96536 | C17: =IF('y = sinh x'!I$28=FALSE,aa,C16+(bb-aa)/200) -> -4 | D17: -26.45079 | F17: =IF('y = sinh x'!I$26=FALSE,aa,aa+(bb-aa)*4/5) -> -4 | G17: -23.2 | J17: -3.4 | K17: 14.99874 | L17: =IF('y = cosh x'!J$27=FALSE,aaa,L16+(bbb-aaa)/200) -> -4 | M17: 26.98095 | O17: =IF('y = cosh x'!J$25=FALSE,aaa,aaa+(bbb-aaa)*2/6) -> -4 | P17: =1+O17^2/2+O17^4/24+O17^6/720 -> 25.35555556
A18: -3.36 | B18: -14.37723 | C18: =IF('y = sinh x'!I$28=FALSE,aa,C17+(bb-aa)/200) -> -4 | D18: -26.45079 | F18: =IF('y = sinh x'!I$26=FALSE,aa,bb) -> -4 | G18: -23.2 | J18: -3.36 | K18: 14.41196 | L18: =IF('y = cosh x'!J$27=FALSE,aaa,L17+(bbb-aaa)/200) -> -4 | M18: 26.98095 | O18: =IF('y = cosh x'!J$25=FALSE,aaa,aaa+(bbb-aaa)*3/6) -> -4 | P18: 25.35555556
A19: -3.32 | B19: -13.81210 | C19: =IF('y = sinh x'!I$28=FALSE,aa,C18+(bb-aa)/200) -> -4 | D19: -26.45079 | J19: -3.32 | K19: 13.84825 | L19: =IF('y = cosh x'!J$27=FALSE,aaa,L18+(bbb-aaa)/200) -> -4 | M19: 26.98095 | O19: =IF('y = cosh x'!J$25=FALSE,aaa,aaa+(bbb-aaa)*4/6) -> -4 | P19: 25.35555556
A20: -3.28 | B20: -13.26907 | C20: =IF('y = sinh x'!I$28=FALSE,aa,C19+(bb-aa)/200) -> -4 | D20: -26.45079 | J20: -3.28 | K20: 13.30670 | L20: =IF('y = cosh x'!J$27=FALSE,aaa,L19+(bbb-aaa)/200) -> -4 | M20: 26.98095 | O20: =IF('y = cosh x'!J$25=FALSE,aaa,aaa+(bbb-aaa)/6) -> -4 | P20: 25.35555556
A21: -3.24 | B21: -12.74728 | C21: =IF('y = sinh x'!I$28=FALSE,aa,C20+(bb-aa)/200) -> -4 | D21: -26.45079 | J21: -3.24 | K21: 12.78644 | L21: =IF('y = cosh x'!J$27=FALSE,aaa,L20+(bbb-aaa)/200) -> -4 | M21: 26.98095 | O21: =IF('y = cosh x'!J$25=FALSE,aaa,bbb) -> -4 | P21: 25.35555556
A22: -3.2 | B22: -12.24588 | C22: =IF('y = sinh x'!I$28=FALSE,aa,C21+(bb-aa)/200) -> -4 | D22: -26.45079 | J22: -3.2 | K22: 12.28665 | L22: =IF('y = cosh x'!J$27=FALSE,aaa,L21+(bbb-aaa)/200) -> -4 | M22: 26.98095
A23: -3.16 | B23: -11.76409 | C23: =IF('y = sinh x'!I$28=FALSE,aa,C22+(bb-aa)/200) -> -4 | D23: -26.45079 | J23: -3.16 | K23: 11.80651 | L23: =IF('y = cosh x'!J$27=FALSE,aaa,L22+(bbb-aaa)/200) -> -4 | M23: 26.98095
A24: -3.12 | B24: -11.30111 | C24: =IF('y = sinh x'!I$28=FALSE,aa,C23+(bb-aa)/200) -> -4 | D24: -26.45079 | J24: -3.12 | K24: 11.34527 | L24: =IF('y = cosh x'!J$27=FALSE,aaa,L23+(bbb-aaa)/200) -> -4 | M24: 26.98095
A25: -3.08 | B25: -10.85622 | C25: =IF('y = sinh x'!I$28=FALSE,aa,C24+(bb-aa)/200) -> -4 | D25: -26.45079 | J25: -3.08 | K25: 10.90218 | L25: =IF('y = cosh x'!J$27=FALSE,aaa,L24+(bbb-aaa)/200) -> -4 | M25: 26.98095
A26: -3.04 | B26: -10.42870 | C26: =IF('y = sinh x'!I$28=FALSE,aa,C25+(bb-aa)/200) -> -4 | D26: -26.45079 | J26: -3.04 | K26: 10.47654 | L26: =IF('y = cosh x'!J$27=FALSE,aaa,L25+(bbb-aaa)/200) -> -4 | M26: 26.98095
A27: -3 | B27: -10.01787 | C27: =IF('y = sinh x'!I$28=FALSE,aa,C26+(bb-aa)/200) -> -4 | D27: -26.45079 | J27: -3 | K27: 10.06766 | L27: =IF('y = cosh x'!J$27=FALSE,aaa,L26+(bbb-aaa)/200) -> -4 | M27: 26.98095
A28: -2.96 | B28: -9.62308 | C28: =IF('y = sinh x'!I$28=FALSE,aa,C27+(bb-aa)/200) -> -4 | D28: -26.45079 | J28: -2.96 | K28: 9.67490 | L28: =IF('y = cosh x'!J$27=FALSE,aaa,L27+(bbb-aaa)/200) -> -4 | M28: 26.98095
A29: -2.92 | B29: -9.24368 | C29: =IF('y = sinh x'!I$28=FALSE,aa,C28+(bb-aa)/200) -> -4 | D29: -26.45079 | J29: -2.92 | K29: 9.29761 | L29: =IF('y = cosh x'!J$27=FALSE,aaa,L28+(bbb-aaa)/200) -> -4 | M29: 26.98095
A30: -2.88 | B30: -8.87907 | C30: =IF('y = sinh x'!I$28=FALSE,aa,C29+(bb-aa)/200) -> -4 | D30: -26.45079 | J30: -2.88 | K30: 8.93520 | L30: =IF('y = cosh x'!J$27=FALSE,aaa,L29+(bbb-aaa)/200) -> -4 | M30: 26.98095
A31: -2.84 | B31: -8.52867 | C31: =IF('y = sinh x'!I$28=FALSE,aa,C30+(bb-aa)/200) -> -4 | D31: -26.45079 | J31: -2.84 | K31: 8.58710 | L31: =IF('y = cosh x'!J$27=FALSE,aaa,L30+(bbb-aaa)/200) -> -4 | M31: 26.98095
A32: -2.8 | B32: -8.19192 | C32: =IF('y = sinh x'!I$28=FALSE,aa,C31+(bb-aa)/200) -> -4 | D32: -26.45079 | J32: -2.8 | K32: 8.25273 | L32: =IF('y = cosh x'!J$27=FALSE,aaa,L31+(bbb-aaa)/200) -> -4 | M32: 26.98095
A33: -2.76 | B33: -7.86828 | C33: =IF('y = sinh x'!I$28=FALSE,aa,C32+(bb-aa)/200) -> -4 | D33: -26.45079 | J33: -2.76 | K33: 7.93157 | L33: =IF('y = cosh x'!J$27=FALSE,aaa,L32+(bbb-aaa)/200) -> -4 | M33: 26.98095
A34: -2.72 | B34: -7.55722 | C34: =IF('y = sinh x'!I$28=FALSE,aa,C33+(bb-aa)/200) -> -4 | D34: -26.45079 | J34: -2.72 | K34: 7.62310 | L34: =IF('y = cosh x'!J$27=FALSE,aaa,L33+(bbb-aaa)/200) -> -4 | M34: 26.98095
A35: =A34+(bb-aa)/200 -> -2.68 | B35: -7.25827 | C35: =IF('y = sinh x'!I$28=FALSE,aa,C34+(bb-aa)/200) -> -4 | D35: -26.45079 | J35: =J34+(bbb-aaa)/200 -> -2.68 | K35: 7.32683 | L35: =IF('y = cosh x'!J$27=FALSE,aaa,L34+(bbb-aaa)/200) -> -4 | M35: 26.98095
A36: -2.64 | B36: -6.97092 | C36: =IF('y = sinh x'!I$28=FALSE,aa,C35+(bb-aa)/200) -> -4 | D36: -26.45079 | J36: -2.64 | K36: 7.04228 | L36: =IF('y = cosh x'!J$27=FALSE,aaa,L35+(bbb-aaa)/200) -> -4 | M36: 26.98095
A37: -2.6 | B37: -6.69473 | C37: =IF('y = sinh x'!I$28=FALSE,aa,C36+(bb-aa)/200) -> -4 | D37: -26.45079 | J37: -2.6 | K37: 6.76901 | L37: =IF('y = cosh x'!J$27=FALSE,aaa,L36+(bbb-aaa)/200) -> -4 | M37: 26.98095
A38: -2.56 | B38: -6.42926 | C38: =IF('y = sinh x'!I$28=FALSE,aa,C37+(bb-aa)/200) -> -4 | D38: -26.45079 | J38: -2.56 | K38: 6.50656 | L38: =IF('y = cosh x'!J$27=FALSE,aaa,L37+(bbb-aaa)/200) -> -4 | M38: 26.98095
A39: -2.52 | B39: -6.17407 | C39: =IF('y = sinh x'!I$28=FALSE,aa,C38+(bb-aa)/200) -> -4 | D39: -26.45079 | J39: -2.52 | K39: 6.25453 | L39: =IF('y = cosh x'!J$27=FALSE,aaa,L38+(bbb-aaa)/200) -> -4 | M39: 26.98095
A40: -2.48 | B40: -5.92876 | C40: =IF('y = sinh x'!I$28=FALSE,aa,C39+(bb-aa)/200) -> -4 | D40: -26.45079 | J40: -2.48 | K40: 6.01250 | L40: =IF('y = cosh x'!J$27=FALSE,aaa,L39+(bbb-aaa)/200) -> -4 | M40: 26.98095
A41: -2.44 | B41: -5.69294 | C41: =IF('y = sinh x'!I$28=FALSE,aa,C40+(bb-aa)/200) -> -4 | D41: -26.45079 | J41: -2.44 | K41: 5.78010 | L41: =IF('y = cosh x'!J$27=FALSE,aaa,L40+(bbb-aaa)/200) -> -4 | M41: 26.98095
A42: -2.4 | B42: -5.46623 | C42: =IF('y = sinh x'!I$28=FALSE,aa,C41+(bb-aa)/200) -> -4 | D42: -26.45079 | J42: -2.4 | K42: 5.55695 | L42: =IF('y = cosh x'!J$27=FALSE,aaa,L41+(bbb-aaa)/200) -> -4 | M42: 26.98095
A43: -2.36 | B43: -5.24827 | C43: =IF('y = sinh x'!I$28=FALSE,aa,C42+(bb-aa)/200) -> -4 | D43: -26.45079 | J43: -2.36 | K43: 5.34269 | L43: =IF('y = cosh x'!J$27=FALSE,aaa,L42+(bbb-aaa)/200) -> -4 | M43: 26.98095
A44: -2.32 | B44: -5.03870 | C44: =IF('y = sinh x'!I$28=FALSE,aa,C43+(bb-aa)/200) -> -4 | D44: -26.45079 | J44: -2.32 | K44: 5.13697 | L44: =IF('y = cosh x'!J$27=FALSE,aaa,L43+(bbb-aaa)/200) -> -4 | M44: 26.98095
A45: -2.28 | B45: -4.83720 | C45: =IF('y = sinh x'!I$28=FALSE,aa,C44+(bb-aa)/200) -> -4 | D45: -26.45079 | J45: -2.28 | K45: 4.93948 | L45: =IF('y = cosh x'!J$27=FALSE,aaa,L44+(bbb-aaa)/200) -> -4 | M45: 26.98095
A46: -2.24 | B46: -4.64344 | C46: =IF('y = sinh x'!I$28=FALSE,aa,C45+(bb-aa)/200) -> -4 | D46: -26.45079 | J46: -2.24 | K46: 4.74989 | L46: =IF('y = cosh x'!J$27=FALSE,aaa,L45+(bbb-aaa)/200) -> -4 | M46: 26.98095
A47: -2.2 | B47: -4.45711 | C47: =IF('y = sinh x'!I$28=FALSE,aa,C46+(bb-aa)/200) -> -4 | D47: -26.45079 | J47: -2.2 | K47: 4.56791 | L47: =IF('y = cosh x'!J$27=FALSE,aaa,L46+(bbb-aaa)/200) -> -4 | M47: 26.98095
A48: -2.16 | B48: -4.27791 | C48: =IF('y = sinh x'!I$28=FALSE,aa,C47+(bb-aa)/200) -> -4 | D48: -26.45079 | J48: -2.16 | K48: 4.39323 | L48: =IF('y = cosh x'!J$27=FALSE,aaa,L47+(bbb-aaa)/200) -> -4 | M48: 26.98095
A49: -2.12 | B49: -4.10555 | C49: =IF('y = sinh x'!I$28=FALSE,aa,C48+(bb-aa)/200) -> -4 | D49: -26.45079 | J49: -2.12 | K49: 4.22558 | L49: =IF('y = cosh x'!J$27=FALSE,aaa,L48+(bbb-aaa)/200) -> -4 | M49: 26.98095
A50: -2.08 | B50: -3.93977 | C50: =IF('y = sinh x'!I$28=FALSE,aa,C49+(bb-aa)/200) -> -4 | D50: -26.45079 | J50: -2.08 | K50: 4.06470 | L50: =IF('y = cosh x'!J$27=FALSE,aaa,L49+(bbb-aaa)/200) -> -4 | M50: 26.98095
A51: -2.04 | B51: -3.78029 | C51: =IF('y = sinh x'!I$28=FALSE,aa,C50+(bb-aa)/200) -> -4 | D51: -26.45079 | J51: -2.04 | K51: 3.91032 | L51: =IF('y = cosh x'!J$27=FALSE,aaa,L50+(bbb-aaa)/200) -> -4 | M51: 26.98095
A52: -2 | B52: -3.62686 | C52: =IF('y = sinh x'!I$28=FALSE,aa,C51+(bb-aa)/200) -> -4 | D52: -26.45079 | J52: -2 | K52: 3.76220 | L52: =IF('y = cosh x'!J$27=FALSE,aaa,L51+(bbb-aaa)/200) -> -4 | M52: 26.98095
A53: -1.96 | B53: -3.47923 | C53: =IF('y = sinh x'!I$28=FALSE,aa,C52+(bb-aa)/200) -> -4 | D53: -26.45079 | J53: -1.96 | K53: 3.62009 | L53: =IF('y = cosh x'!J$27=FALSE,aaa,L52+(bbb-aaa)/200) -> -4 | M53: 26.98095
A54: -1.92 | B54: -3.33718 | C54: =IF('y = sinh x'!I$28=FALSE,aa,C53+(bb-aa)/200) -> -4 | D54: -26.45079 | J54: -1.92 | K54: 3.48378 | L54: =IF('y = cosh x'!J$27=FALSE,aaa,L53+(bbb-aaa)/200) -> -4 | M54: 26.98095
A55: -1.88 | B55: -3.20046 | C55: =IF('y = sinh x'!I$28=FALSE,aa,C54+(bb-aa)/200) -> -4 | D55: -26.45079 | J55: -1.88 | K55: 3.35305 | L55: =IF('y = cosh x'!J$27=FALSE,aaa,L54+(bbb-aaa)/200) -> -4 | M55: 26.98095
A56: -1.84 | B56: -3.06886 | C56: =IF('y = sinh x'!I$28=FALSE,aa,C55+(bb-aa)/200) -> -4 | D56: -26.45079 | J56: -1.84 | K56: 3.22768 | L56: =IF('y = cosh x'!J$27=FALSE,aaa,L55+(bbb-aaa)/200) -> -4 | M56: 26.98095
A57: -1.8 | B57: -2.94217 | C57: =IF('y = sinh x'!I$28=FALSE,aa,C56+(bb-aa)/200) -> -4 | D57: -26.45079 | J57: -1.8 | K57: 3.10747 | L57: =IF('y = cosh x'!J$27=FALSE,aaa,L56+(bbb-aaa)/200) -> -4 | M57: 26.98095
A58: -1.76 | B58: -2.82020 | C58: =IF('y = sinh x'!I$28=FALSE,aa,C57+(bb-aa)/200) -> -4 | D58: -26.45079 | J58: -1.76 | K58: 2.99224 | L58: =IF('y = cosh x'!J$27=FALSE,aaa,L57+(bbb-aaa)/200) -> -4 | M58: 26.98095
A59: -1.72 | B59: -2.70273 | C59: =IF('y = sinh x'!I$28=FALSE,aa,C58+(bb-aa)/200) -> -4 | D59: -26.45079 | J59: -1.72 | K59: 2.88180 | L59: =IF('y = cosh x'!J$27=FALSE,aaa,L58+(bbb-aaa)/200) -> -4 | M59: 26.98095
A60: -1.68 | B60: -2.58959 | C60: =IF('y = sinh x'!I$28=FALSE,aa,C59+(bb-aa)/200) -> -4 | D60: -26.45079 | J60: -1.68 | K60: 2.77596 | L60: =IF('y = cosh x'!J$27=FALSE,aaa,L59+(bbb-aaa)/200) -> -4 | M60: 26.98095
A61: -1.64 | B61: -2.48059 | C61: =IF('y = sinh x'!I$28=FALSE,aa,C60+(bb-aa)/200) -> -4 | D61: -26.45079 | J61: -1.64 | K61: 2.67457 | L61: =IF('y = cosh x'!J$27=FALSE,aaa,L60+(bbb-aaa)/200) -> -4 | M61: 26.98095
A62: -1.6 | B62: -2.37557 | C62: =IF('y = sinh x'!I$28=FALSE,aa,C61+(bb-aa)/200) -> -4 | D62: -26.45079 | J62: -1.6 | K62: 2.57746 | L62: =IF('y = cosh x'!J$27=FALSE,aaa,L61+(bbb-aaa)/200) -> -4 | M62: 26.98095
A63: -1.56 | B63: -2.27434 | C63: =IF('y = sinh x'!I$28=FALSE,aa,C62+(bb-aa)/200) -> -4 | D63: -26.45079 | J63: -1.56 | K63: 2.48448 | L63: =IF('y = cosh x'!J$27=FALSE,aaa,L62+(bbb-aaa)/200) -> -4 | M63: 26.98095
A64: -1.52 | B64: -2.17676 | C64: =IF('y = sinh x'!I$28=FALSE,aa,C63+(bb-aa)/200) -> -4 | D64: -26.45079 | J64: -1.52 | K64: 2.39547 | L64: =IF('y = cosh x'!J$27=FALSE,aaa,L63+(bbb-aaa)/200) -> -4 | M64: 26.98095
A65: -1.48 | B65: -2.08265 | C65: =IF('y = sinh x'!I$28=FALSE,aa,C64+(bb-aa)/200) -> -4 | D65: -26.45079 | J65: -1.48 | K65: 2.31029 | L65: =IF('y = cosh x'!J$27=FALSE,aaa,L64+(bbb-aaa)/200) -> -4 | M65: 26.98095
A66: -1.44 | B66: -1.99188 | C66: =IF('y = sinh x'!I$28=FALSE,aa,C65+(bb-aa)/200) -> -4 | D66: -26.45079 | J66: -1.44 | K66: 2.22881 | L66: =IF('y = cosh x'!J$27=FALSE,aaa,L65+(bbb-aaa)/200) -> -4 | M66: 26.98095
A67: =A66+(bb-aa)/200 -> -1.4 | B67: =SINH(A67) -> -1.90430 | C67: =IF('y = sinh x'!I$28=FALSE,aa,C66+(bb-aa)/200) -> -4 | D67: =C67+C67^3/6+C67^5/120+C67^7/5040 -> -26.45079 | J67: =J66+(bbb-aaa)/200 -> -1.4 | K67: =COSH(J67) -> 2.15090 | L67: =IF('y = cosh x'!J$27=FALSE,aaa,L66+(bbb-aaa)/200) -> -4 | M67: =1+L67^2/2+L67^4/24+L67^6/720+L67^8/5040/8 -> 26.98095
A68: -1.36 | B68: -1.81977 | C68: =IF('y = sinh x'!I$28=FALSE,aa,C67+(bb-aa)/200) -> -4 | D68: -26.45079 | J68: -1.36 | K68: 2.07643 | L68: =IF('y = cosh x'!J$27=FALSE,aaa,L67+(bbb-aaa)/200) -> -4 | M68: 26.98095
A69: -1.32 | B69: -1.73814 | C69: =IF('y = sinh x'!I$28=FALSE,aa,C68+(bb-aa)/200) -> -4 | D69: -26.45079 | J69: -1.32 | K69: 2.00528 | L69: =IF('y = cosh x'!J$27=FALSE,aaa,L68+(bbb-aaa)/200) -> -4 | M69: 26.98095
A70: -1.28 | B70: -1.65930 | C70: =IF('y = sinh x'!I$28=FALSE,aa,C69+(bb-aa)/200) -> -4 | D70: -26.45079 | J70: -1.28 | K70: 1.93734 | L70: =IF('y = cosh x'!J$27=FALSE,aaa,L69+(bbb-aaa)/200) -> -4 | M70: 26.98095
A71: -1.24 | B71: -1.58311 | C71: =IF('y = sinh x'!I$28=FALSE,aa,C70+(bb-aa)/200) -> -4 | D71: -26.45079 | J71: -1.24 | K71: 1.87250 | L71: =IF('y = cosh x'!J$27=FALSE,aaa,L70+(bbb-aaa)/200) -> -4 | M71: 26.98095
A72: -1.2 | B72: -1.50946 | C72: =IF('y = sinh x'!I$28=FALSE,aa,C71+(bb-aa)/200) -> -4 | D72: -26.45079 | J72: -1.2 | K72: 1.81066 | L72: =IF('y = cosh x'!J$27=FALSE,aaa,L71+(bbb-aaa)/200) -> -4 | M72: 26.98095
A73: -1.16 | B73: -1.43822 | C73: =IF('y = sinh x'!I$28=FALSE,aa,C72+(bb-aa)/200) -> -4 | D73: -26.45079 | J73: -1.16 | K73: 1.75171 | L73: =IF('y = cosh x'!J$27=FALSE,aaa,L72+(bbb-aaa)/200) -> -4 | M73: 26.98095
A74: -1.12 | B74: -1.36929 | C74: =IF('y = sinh x'!I$28=FALSE,aa,C73+(bb-aa)/200) -> -4 | D74: -26.45079 | J74: -1.12 | K74: 1.69557 | L74: =IF('y = cosh x'!J$27=FALSE,aaa,L73+(bbb-aaa)/200) -> -4 | M74: 26.98095
A75: -1.08 | B75: -1.30254 | C75: =IF('y = sinh x'!I$28=FALSE,aa,C74+(bb-aa)/200) -> -4 | D75: -26.45079 | J75: -1.08 | K75: 1.64214 | L75: =IF('y = cosh x'!J$27=FALSE,aaa,L74+(bbb-aaa)/200) -> -4 | M75: 26.98095
A76: -1.04 | B76: -1.23788 | C76: =IF('y = sinh x'!I$28=FALSE,aa,C75+(bb-aa)/200) -> -4 | D76: -26.45079 | J76: -1.04 | K76: 1.59134 | L76: =IF('y = cosh x'!J$27=FALSE,aaa,L75+(bbb-aaa)/200) -> -4 | M76: 26.98095
A77: -1 | B77: -1.17520 | C77: =IF('y = sinh x'!I$28=FALSE,aa,C76+(bb-aa)/200) -> -4 | D77: -26.45079 | J77: -1 | K77: 1.54308 | L77: =IF('y = cosh x'!J$27=FALSE,aaa,L76+(bbb-aaa)/200) -> -4 | M77: 26.98095
A78: -0.96 | B78: -1.11440 | C78: =IF('y = sinh x'!I$28=FALSE,aa,C77+(bb-aa)/200) -> -4 | D78: -26.45079 | J78: -0.96 | K78: 1.49729 | L78: =IF('y = cosh x'!J$27=FALSE,aaa,L77+(bbb-aaa)/200) -> -4 | M78: 26.98095
A79: -0.92 | B79: -1.05539 | C79: =IF('y = sinh x'!I$28=FALSE,aa,C78+(bb-aa)/200) -> -4 | D79: -26.45079 | J79: -0.92 | K79: 1.45390 | L79: =IF('y = cosh x'!J$27=FALSE,aaa,L78+(bbb-aaa)/200) -> -4 | M79: 26.98095
A80: -0.88 | B80: -0.99806 | C80: =IF('y = sinh x'!I$28=FALSE,aa,C79+(bb-aa)/200) -> -4 | D80: -26.45079 | J80: -0.88 | K80: 1.41284 | L80: =IF('y = cosh x'!J$27=FALSE,aaa,L79+(bbb-aaa)/200) -> -4 | M80: 26.98095
A81: -0.84 | B81: -0.94233 | C81: =IF('y = sinh x'!I$28=FALSE,aa,C80+(bb-aa)/200) -> -4 | D81: -26.45079 | J81: -0.84 | K81: 1.37404 | L81: =IF('y = cosh x'!J$27=FALSE,aaa,L80+(bbb-aaa)/200) -> -4 | M81: 26.98095
A82: -0.8 | B82: -0.88811 | C82: =IF('y = sinh x'!I$28=FALSE,aa,C81+(bb-aa)/200) -> -4 | D82: -26.45079 | J82: -0.8 | K82: 1.33743 | L82: =IF('y = cosh x'!J$27=FALSE,aaa,L81+(bbb-aaa)/200) -> -4 | M82: 26.98095
A83: -0.76 | B83: -0.83530 | C83: =IF('y = sinh x'!I$28=FALSE,aa,C82+(bb-aa)/200) -> -4 | D83: -26.45079 | J83: -0.76 | K83: 1.30297 | L83: =IF('y = cosh x'!J$27=FALSE,aaa,L82+(bbb-aaa)/200) -> -4 | M83: 26.98095
A84: -0.72 | B84: -0.78384 | C84: =IF('y = sinh x'!I$28=FALSE,aa,C83+(bb-aa)/200) -> -4 | D84: -26.45079 | J84: -0.72 | K84: 1.27059 | L84: =IF('y = cosh x'!J$27=FALSE,aaa,L83+(bbb-aaa)/200) -> -4 | M84: 26.98095
A85: -0.68 | B85: -0.73363 | C85: =IF('y = sinh x'!I$28=FALSE,aa,C84+(bb-aa)/200) -> -4 | D85: -26.45079 | J85: -0.68 | K85: 1.24025 | L85: =IF('y = cosh x'!J$27=FALSE,aaa,L84+(bbb-aaa)/200) -> -4 | M85: 26.98095
A86: -0.64 | B86: -0.68459 | C86: =IF('y = sinh x'!I$28=FALSE,aa,C85+(bb-aa)/200) -> -4 | D86: -26.45079 | J86: -0.64 | K86: 1.21189 | L86: =IF('y = cosh x'!J$27=FALSE,aaa,L85+(bbb-aaa)/200) -> -4 | M86: 26.98095
A87: -0.6 | B87: -0.63665 | C87: =IF('y = sinh x'!I$28=FALSE,aa,C86+(bb-aa)/200) -> -4 | D87: -26.45079 | J87: -0.6 | K87: 1.18547 | L87: =IF('y = cosh x'!J$27=FALSE,aaa,L86+(bbb-aaa)/200) -> -4 | M87: 26.98095
A88: -0.56 | B88: -0.58973 | C88: =IF('y = sinh x'!I$28=FALSE,aa,C87+(bb-aa)/200) -> -4 | D88: -26.45079 | J88: -0.56 | K88: 1.16094 | L88: =IF('y = cosh x'!J$27=FALSE,aaa,L87+(bbb-aaa)/200) -> -4 | M88: 26.98095
A89: -0.52 | B89: -0.54375 | C89: =IF('y = sinh x'!I$28=FALSE,aa,C88+(bb-aa)/200) -> -4 | D89: -26.45079 | J89: -0.52 | K89: 1.13827 | L89: =IF('y = cosh x'!J$27=FALSE,aaa,L88+(bbb-aaa)/200) -> -4 | M89: 26.98095
A90: -0.48 | B90: -0.49865 | C90: =IF('y = sinh x'!I$28=FALSE,aa,C89+(bb-aa)/200) -> -4 | D90: -26.45079 | J90: -0.48 | K90: 1.11743 | L90: =IF('y = cosh x'!J$27=FALSE,aaa,L89+(bbb-aaa)/200) -> -4 | M90: 26.98095
A91: -0.44 | B91: -0.45434 | C91: =IF('y = sinh x'!I$28=FALSE,aa,C90+(bb-aa)/200) -> -4 | D91: -26.45079 | J91: -0.44 | K91: 1.09837 | L91: =IF('y = cosh x'!J$27=FALSE,aaa,L90+(bbb-aaa)/200) -> -4 | M91: 26.98095
A92: -0.4 | B92: -0.41075 | C92: =IF('y = sinh x'!I$28=FALSE,aa,C91+(bb-aa)/200) -> -4 | D92: -26.45079 | J92: -0.4 | K92: 1.08107 | L92: =IF('y = cosh x'!J$27=FALSE,aaa,L91+(bbb-aaa)/200) -> -4 | M92: 26.98095
A93: -0.36 | B93: -0.36783 | C93: =IF('y = sinh x'!I$28=FALSE,aa,C92+(bb-aa)/200) -> -4 | D93: -26.45079 | J93: -0.36 | K93: 1.06550 | L93: =IF('y = cosh x'!J$27=FALSE,aaa,L92+(bbb-aaa)/200) -> -4 | M93: 26.98095
A94: -0.32 | B94: -0.32549 | C94: =IF('y = sinh x'!I$28=FALSE,aa,C93+(bb-aa)/200) -> -4 | D94: -26.45079 | J94: -0.32 | K94: 1.05164 | L94: =IF('y = cosh x'!J$27=FALSE,aaa,L93+(bbb-aaa)/200) -> -4 | M94: 26.98095
A95: -0.28 | B95: -0.28367 | C95: =IF('y = sinh x'!I$28=FALSE,aa,C94+(bb-aa)/200) -> -4 | D95: -26.45079 | J95: -0.28 | K95: 1.03946 | L95: =IF('y = cosh x'!J$27=FALSE,aaa,L94+(bbb-aaa)/200) -> -4 | M95: 26.98095
A96: -0.24 | B96: -0.24231 | C96: =IF('y = sinh x'!I$28=FALSE,aa,C95+(bb-aa)/200) -> -4 | D96: -26.45079 | J96: -0.24 | K96: 1.02894 | L96: =IF('y = cosh x'!J$27=FALSE,aaa,L95+(bbb-aaa)/200) -> -4 | M96: 26.98095
A97: -0.2 | B97: -0.20134 | C97: =IF('y = sinh x'!I$28=FALSE,aa,C96+(bb-aa)/200) -> -4 | D97: -26.45079 | J97: -0.2 | K97: 1.02007 | L97: =IF('y = cosh x'!J$27=FALSE,aaa,L96+(bbb-aaa)/200) -> -4 | M97: 26.98095
A98: -0.16 | B98: -0.16068 | C98: =IF('y = sinh x'!I$28=FALSE,aa,C97+(bb-aa)/200) -> -4 | D98: -26.45079 | J98: -0.16 | K98: 1.01283 | L98: =IF('y = cosh x'!J$27=FALSE,aaa,L97+(bbb-aaa)/200) -> -4 | M98: 26.98095
A99: =A98+(bb-aa)/200 -> -0.12 | B99: -0.12029 | C99: =IF('y = sinh x'!I$28=FALSE,aa,C98+(bb-aa)/200) -> -4 | D99: -26.45079 | J99: =J98+(bbb-aaa)/200 -> -0.12 | K99: 1.00721 | L99: =IF('y = cosh x'!J$27=FALSE,aaa,L98+(bbb-aaa)/200) -> -4 | M99: 26.98095
A100: -0.08 | B100: -0.08009 | C100: =IF('y = sinh x'!I$28=FALSE,aa,C99+(bb-aa)/200) -> -4 | D100: -26.45079 | J100: -0.08 | K100: 1.00320 | L100: =IF('y = cosh x'!J$27=FALSE,aaa,L99+(bbb-aaa)/200) -> -4 | M100: 26.98095
A101: -0.04 | B101: -0.04001 | C101: =IF('y = sinh x'!I$28=FALSE,aa,C100+(bb-aa)/200) -> -4 | D101: -26.45079 | J101: -0.04 | K101: 1.00080 | L101: =IF('y = cosh x'!J$27=FALSE,aaa,L100+(bbb-aaa)/200) -> -4 | M101: 26.98095
A102: 3.011479954e-15 | B102: 0.00000 | C102: =IF('y = sinh x'!I$28=FALSE,aa,C101+(bb-aa)/200) -> -4 | D102: -26.45079 | J102: 3.011479954e-15 | K102: 1.00000 | L102: =IF('y = cosh x'!J$27=FALSE,aaa,L101+(bbb-aaa)/200) -> -4 | M102: 26.98095
A103: 0.04 | B103: 0.04001 | C103: =IF('y = sinh x'!I$28=FALSE,aa,C102+(bb-aa)/200) -> -4 | D103: -26.45079 | J103: 0.04 | K103: 1.00080 | L103: =IF('y = cosh x'!J$27=FALSE,aaa,L102+(bbb-aaa)/200) -> -4 | M103: 26.98095
A104: 0.08 | B104: 0.08009 | C104: =IF('y = sinh x'!I$28=FALSE,aa,C103+(bb-aa)/200) -> -4 | D104: -26.45079 | J104: 0.08 | K104: 1.00320 | L104: =IF('y = cosh x'!J$27=FALSE,aaa,L103+(bbb-aaa)/200) -> -4 | M104: 26.98095
A105: 0.12 | B105: 0.12029 | C105: =IF('y = sinh x'!I$28=FALSE,aa,C104+(bb-aa)/200) -> -4 | D105: -26.45079 | J105: 0.12 | K105: 1.00721 | L105: =IF('y = cosh x'!J$27=FALSE,aaa,L104+(bbb-aaa)/200) -> -4 | M105: 26.98095
A106: 0.16 | B106: 0.16068 | C106: =IF('y = sinh x'!I$28=FALSE,aa,C105+(bb-aa)/200) -> -4 | D106: -26.45079 | J106: 0.16 | K106: 1.01283 | L106: =IF('y = cosh x'!J$27=FALSE,aaa,L105+(bbb-aaa)/200) -> -4 | M106: 26.98095
A107: 0.2 | B107: 0.20134 | C107: =IF('y = sinh x'!I$28=FALSE,aa,C106+(bb-aa)/200) -> -4 | D107: -26.45079 | J107: 0.2 | K107: 1.02007 | L107: =IF('y = cosh x'!J$27=FALSE,aaa,L106+(bbb-aaa)/200) -> -4 | M107: 26.98095
A108: 0.24 | B108: 0.24231 | C108: =IF('y = sinh x'!I$28=FALSE,aa,C107+(bb-aa)/200) -> -4 | D108: -26.45079 | J108: 0.24 | K108: 1.02894 | L108: =IF('y = cosh x'!J$27=FALSE,aaa,L107+(bbb-aaa)/200) -> -4 | M108: 26.98095
A109: 0.28 | B109: 0.28367 | C109: =IF('y = sinh x'!I$28=FALSE,aa,C108+(bb-aa)/200) -> -4 | D109: -26.45079 | J109: 0.28 | K109: 1.03946 | L109: =IF('y = cosh x'!J$27=FALSE,aaa,L108+(bbb-aaa)/200) -> -4 | M109: 26.98095
A110: 0.32 | B110: 0.32549 | C110: =IF('y = sinh x'!I$28=FALSE,aa,C109+(bb-aa)/200) -> -4 | D110: -26.45079 | J110: 0.32 | K110: 1.05164 | L110: =IF('y = cosh x'!J$27=FALSE,aaa,L109+(bbb-aaa)/200) -> -4 | M110: 26.98095
A111: 0.36 | B111: 0.36783 | C111: =IF('y = sinh x'!I$28=FALSE,aa,C110+(bb-aa)/200) -> -4 | D111: -26.45079 | J111: 0.36 | K111: 1.06550 | L111: =IF('y = cosh x'!J$27=FALSE,aaa,L110+(bbb-aaa)/200) -> -4 | M111: 26.98095
A112: 0.4 | B112: 0.41075 | C112: =IF('y = sinh x'!I$28=FALSE,aa,C111+(bb-aa)/200) -> -4 | D112: -26.45079 | J112: 0.4 | K112: 1.08107 | L112: =IF('y = cosh x'!J$27=FALSE,aaa,L111+(bbb-aaa)/200) -> -4 | M112: 26.98095
A113: 0.44 | B113: 0.45434 | C113: =IF('y = sinh x'!I$28=FALSE,aa,C112+(bb-aa)/200) -> -4 | D113: -26.45079 | J113: 0.44 | K113: 1.09837 | L113: =IF('y = cosh x'!J$27=FALSE,aaa,L112+(bbb-aaa)/200) -> -4 | M113: 26.98095
A114: 0.48 | B114: 0.49865 | C114: =IF('y = sinh x'!I$28=FALSE,aa,C113+(bb-aa)/200) -> -4 | D114: -26.45079 | J114: 0.48 | K114: 1.11743 | L114: =IF('y = cosh x'!J$27=FALSE,aaa,L113+(bbb-aaa)/200) -> -4 | M114: 26.98095
A115: 0.52 | B115: 0.54375 | C115: =IF('y = sinh x'!I$28=FALSE,aa,C114+(bb-aa)/200) -> -4 | D115: -26.45079 | J115: 0.52 | K115: 1.13827 | L115: =IF('y = cosh x'!J$27=FALSE,aaa,L114+(bbb-aaa)/200) -> -4 | M115: 26.98095
A116: 0.56 | B116: 0.58973 | C116: =IF('y = sinh x'!I$28=FALSE,aa,C115+(bb-aa)/200) -> -4 | D116: -26.45079 | J116: 0.56 | K116: 1.16094 | L116: =IF('y = cosh x'!J$27=FALSE,aaa,L115+(bbb-aaa)/200) -> -4 | M116: 26.98095
A117: 0.6 | B117: 0.63665 | C117: =IF('y = sinh x'!I$28=FALSE,aa,C116+(bb-aa)/200) -> -4 | D117: -26.45079 | J117: 0.6 | K117: 1.18547 | L117: =IF('y = cosh x'!J$27=FALSE,aaa,L116+(bbb-aaa)/200) -> -4 | M117: 26.98095
A118: 0.64 | B118: 0.68459 | C118: =IF('y = sinh x'!I$28=FALSE,aa,C117+(bb-aa)/200) -> -4 | D118: -26.45079 | J118: 0.64 | K118: 1.21189 | L118: =IF('y = cosh x'!J$27=FALSE,aaa,L117+(bbb-aaa)/200) -> -4 | M118: 26.98095
A119: 0.68 | B119: 0.73363 | C119: =IF('y = sinh x'!I$28=FALSE,aa,C118+(bb-aa)/200) -> -4 | D119: -26.45079 | J119: 0.68 | K119: 1.24025 | L119: =IF('y = cosh x'!J$27=FALSE,aaa,L118+(bbb-aaa)/200) -> -4 | M119: 26.98095
A120: 0.72 | B120: 0.78384 | C120: =IF('y = sinh x'!I$28=FALSE,aa,C119+(bb-aa)/200) -> -4 | D120: -26.45079 | J120: 0.72 | K120: 1.27059 | L120: =IF('y = cosh x'!J$27=FALSE,aaa,L119+(bbb-aaa)/200) -> -4 | M120: 26.98095
A121: 0.76 | B121: 0.83530 | C121: =IF('y = sinh x'!I$28=FALSE,aa,C120+(bb-aa)/200) -> -4 | D121: -26.45079 | J121: 0.76 | K121: 1.30297 | L121: =IF('y = cosh x'!J$27=FALSE,aaa,L120+(bbb-aaa)/200) -> -4 | M121: 26.98095
A122: 0.8 | B122: 0.88811 | C122: =IF('y = sinh x'!I$28=FALSE,aa,C121+(bb-aa)/200) -> -4 | D122: -26.45079 | J122: 0.8 | K122: 1.33743 | L122: =IF('y = cosh x'!J$27=FALSE,aaa,L121+(bbb-aaa)/200) -> -4 | M122: 26.98095
A123: 0.84 | B123: 0.94233 | C123: =IF('y = sinh x'!I$28=FALSE,aa,C122+(bb-aa)/200) -> -4 | D123: -26.45079 | J123: 0.84 | K123: 1.37404 | L123: =IF('y = cosh x'!J$27=FALSE,aaa,L122+(bbb-aaa)/200) -> -4 | M123: 26.98095
A124: 0.88 | B124: 0.99806 | C124: =IF('y = sinh x'!I$28=FALSE,aa,C123+(bb-aa)/200) -> -4 | D124: -26.45079 | J124: 0.88 | K124: 1.41284 | L124: =IF('y = cosh x'!J$27=FALSE,aaa,L123+(bbb-aaa)/200) -> -4 | M124: 26.98095
A125: 0.92 | B125: 1.05539 | C125: =IF('y = sinh x'!I$28=FALSE,aa,C124+(bb-aa)/200) -> -4 | D125: -26.45079 | J125: 0.92 | K125: 1.45390 | L125: =IF('y = cosh x'!J$27=FALSE,aaa,L124+(bbb-aaa)/200) -> -4 | M125: 26.98095
A126: 0.96 | B126: 1.11440 | C126: =IF('y = sinh x'!I$28=FALSE,aa,C125+(bb-aa)/200) -> -4 | D126: -26.45079 | J126: 0.96 | K126: 1.49729 | L126: =IF('y = cosh x'!J$27=FALSE,aaa,L125+(bbb-aaa)/200) -> -4 | M126: 26.98095
A127: 1 | B127: 1.17520 | C127: =IF('y = sinh x'!I$28=FALSE,aa,C126+(bb-aa)/200) -> -4 | D127: -26.45079 | J127: 1 | K127: 1.54308 | L127: =IF('y = cosh x'!J$27=FALSE,aaa,L126+(bbb-aaa)/200) -> -4 | M127: 26.98095
A128: 1.04 | B128: 1.23788 | C128: =IF('y = sinh x'!I$28=FALSE,aa,C127+(bb-aa)/200) -> -4 | D128: -26.45079 | J128: 1.04 | K128: 1.59134 | L128: =IF('y = cosh x'!J$27=FALSE,aaa,L127+(bbb-aaa)/200) -> -4 | M128: 26.98095
A129: 1.08 | B129: 1.30254 | C129: =IF('y = sinh x'!I$28=FALSE,aa,C128+(bb-aa)/200) -> -4 | D129: -26.45079 | J129: 1.08 | K129: 1.64214 | L129: =IF('y = cosh x'!J$27=FALSE,aaa,L128+(bbb-aaa)/200) -> -4 | M129: 26.98095
A130: 1.12 | B130: 1.36929 | C130: =IF('y = sinh x'!I$28=FALSE,aa,C129+(bb-aa)/200) -> -4 | D130: -26.45079 | J130: 1.12 | K130: 1.69557 | L130: =IF('y = cosh x'!J$27=FALSE,aaa,L129+(bbb-aaa)/200) -> -4 | M130: 26.98095
A131: =A130+(bb-aa)/200 -> 1.16 | B131: =SINH(A131) -> 1.43822 | C131: =IF('y = sinh x'!I$28=FALSE,aa,C130+(bb-aa)/200) -> -4 | D131: =C131+C131^3/6+C131^5/120+C131^7/5040 -> -26.45079 | J131: =J130+(bbb-aaa)/200 -> 1.16 | K131: =COSH(J131) -> 1.75171 | L131: =IF('y = cosh x'!J$27=FALSE,aaa,L130+(bbb-aaa)/200) -> -4 | M131: =1+L131^2/2+L131^4/24+L131^6/720+L131^8/5040/8 -> 26.98095
A132: 1.2 | B132: 1.50946 | C132: =IF('y = sinh x'!I$28=FALSE,aa,C131+(bb-aa)/200) -> -4 | D132: -26.45079 | J132: 1.2 | K132: 1.81066 | L132: =IF('y = cosh x'!J$27=FALSE,aaa,L131+(bbb-aaa)/200) -> -4 | M132: 26.98095
A133: 1.24 | B133: 1.58311 | C133: =IF('y = sinh x'!I$28=FALSE,aa,C132+(bb-aa)/200) -> -4 | D133: -26.45079 | J133: 1.24 | K133: 1.87250 | L133: =IF('y = cosh x'!J$27=FALSE,aaa,L132+(bbb-aaa)/200) -> -4 | M133: 26.98095
A134: 1.28 | B134: 1.65930 | C134: =IF('y = sinh x'!I$28=FALSE,aa,C133+(bb-aa)/200) -> -4 | D134: -26.45079 | J134: 1.28 | K134: 1.93734 | L134: =IF('y = cosh x'!J$27=FALSE,aaa,L133+(bbb-aaa)/200) -> -4 | M134: 26.98095
A135: 1.32 | B135: 1.73814 | C135: =IF('y = sinh x'!I$28=FALSE,aa,C134+(bb-aa)/200) -> -4 | D135: -26.45079 | J135: 1.32 | K135: 2.00528 | L135: =IF('y = cosh x'!J$27=FALSE,aaa,L134+(bbb-aaa)/200) -> -4 | M135: 26.98095
A136: 1.36 | B136: 1.81977 | C136: =IF('y = sinh x'!I$28=FALSE,aa,C135+(bb-aa)/200) -> -4 | D136: -26.45079 | J136: 1.36 | K136: 2.07643 | L136: =IF('y = cosh x'!J$27=FALSE,aaa,L135+(bbb-aaa)/200) -> -4 | M136: 26.98095
A137: 1.4 | B137: 1.90430 | C137: =IF('y = sinh x'!I$28=FALSE,aa,C136+(bb-aa)/200) -> -4 | D137: -26.45079 | J137: 1.4 | K137: 2.15090 | L137: =IF('y = cosh x'!J$27=FALSE,aaa,L136+(bbb-aaa)/200) -> -4 | M137: 26.98095
A138: 1.44 | B138: 1.99188 | C138: =IF('y = sinh x'!I$28=FALSE,aa,C137+(bb-aa)/200) -> -4 | D138: -26.45079 | J138: 1.44 | K138: 2.22881 | L138: =IF('y = cosh x'!J$27=FALSE,aaa,L137+(bbb-aaa)/200) -> -4 | M138: 26.98095
A139: 1.48 | B139: 2.08265 | C139: =IF('y = sinh x'!I$28=FALSE,aa,C138+(bb-aa)/200) -> -4 | D139: -26.45079 | J139: 1.48 | K139: 2.31029 | L139: =IF('y = cosh x'!J$27=FALSE,aaa,L138+(bbb-aaa)/200) -> -4 | M139: 26.98095
A140: 1.52 | B140: 2.17676 | C140: =IF('y = sinh x'!I$28=FALSE,aa,C139+(bb-aa)/200) -> -4 | D140: -26.45079 | J140: 1.52 | K140: 2.39547 | L140: =IF('y = cosh x'!J$27=FALSE,aaa,L139+(bbb-aaa)/200) -> -4 | M140: 26.98095
A141: 1.56 | B141: 2.27434 | C141: =IF('y = sinh x'!I$28=FALSE,aa,C140+(bb-aa)/200) -> -4 | D141: -26.45079 | J141: 1.56 | K141: 2.48448 | L141: =IF('y = cosh x'!J$27=FALSE,aaa,L140+(bbb-aaa)/200) -> -4 | M141: 26.98095
A142: 1.6 | B142: 2.37557 | C142: =IF('y = sinh x'!I$28=FALSE,aa,C141+(bb-aa)/200) -> -4 | D142: -26.45079 | J142: 1.6 | K142: 2.57746 | L142: =IF('y = cosh x'!J$27=FALSE,aaa,L141+(bbb-aaa)/200) -> -4 | M142: 26.98095
A143: 1.64 | B143: 2.48059 | C143: =IF('y = sinh x'!I$28=FALSE,aa,C142+(bb-aa)/200) -> -4 | D143: -26.45079 | J143: 1.64 | K143: 2.67457 | L143: =IF('y = cosh x'!J$27=FALSE,aaa,L142+(bbb-aaa)/200) -> -4 | M143: 26.98095
A144: 1.68 | B144: 2.58959 | C144: =IF('y = sinh x'!I$28=FALSE,aa,C143+(bb-aa)/200) -> -4 | D144: -26.45079 | J144: 1.68 | K144: 2.77596 | L144: =IF('y = cosh x'!J$27=FALSE,aaa,L143+(bbb-aaa)/200) -> -4 | M144: 26.98095
A145: 1.72 | B145: 2.70273 | C145: =IF('y = sinh x'!I$28=FALSE,aa,C144+(bb-aa)/200) -> -4 | D145: -26.45079 | J145: 1.72 | K145: 2.88180 | L145: =IF('y = cosh x'!J$27=FALSE,aaa,L144+(bbb-aaa)/200) -> -4 | M145: 26.98095
A146: 1.76 | B146: 2.82020 | C146: =IF('y = sinh x'!I$28=FALSE,aa,C145+(bb-aa)/200) -> -4 | D146: -26.45079 | J146: 1.76 | K146: 2.99224 | L146: =IF('y = cosh x'!J$27=FALSE,aaa,L145+(bbb-aaa)/200) -> -4 | M146: 26.98095
A147: 1.8 | B147: 2.94217 | C147: =IF('y = sinh x'!I$28=FALSE,aa,C146+(bb-aa)/200) -> -4 | D147: -26.45079 | J147: 1.8 | K147: 3.10747 | L147: =IF('y = cosh x'!J$27=FALSE,aaa,L146+(bbb-aaa)/200) -> -4 | M147: 26.98095
A148: 1.84 | B148: 3.06886 | C148: =IF('y = sinh x'!I$28=FALSE,aa,C147+(bb-aa)/200) -> -4 | D148: -26.45079 | J148: 1.84 | K148: 3.22768 | L148: =IF('y = cosh x'!J$27=FALSE,aaa,L147+(bbb-aaa)/200) -> -4 | M148: 26.98095
A149: 1.88 | B149: 3.20046 | C149: =IF('y = sinh x'!I$28=FALSE,aa,C148+(bb-aa)/200) -> -4 | D149: -26.45079 | J149: 1.88 | K149: 3.35305 | L149: =IF('y = cosh x'!J$27=FALSE,aaa,L148+(bbb-aaa)/200) -> -4 | M149: 26.98095
A150: 1.92 | B150: 3.33718 | C150: =IF('y = sinh x'!I$28=FALSE,aa,C149+(bb-aa)/200) -> -4 | D150: -26.45079 | J150: 1.92 | K150: 3.48378 | L150: =IF('y = cosh x'!J$27=FALSE,aaa,L149+(bbb-aaa)/200) -> -4 | M150: 26.98095
A151: 1.96 | B151: 3.47923 | C151: =IF('y = sinh x'!I$28=FALSE,aa,C150+(bb-aa)/200) -> -4 | D151: -26.45079 | J151: 1.96 | K151: 3.62009 | L151: =IF('y = cosh x'!J$27=FALSE,aaa,L150+(bbb-aaa)/200) -> -4 | M151: 26.98095
A152: 2 | B152: 3.62686 | C152: =IF('y = sinh x'!I$28=FALSE,aa,C151+(bb-aa)/200) -> -4 | D152: -26.45079 | J152: 2 | K152: 3.76220 | L152: =IF('y = cosh x'!J$27=FALSE,aaa,L151+(bbb-aaa)/200) -> -4 | M152: 26.98095
A153: 2.04 | B153: 3.78029 | C153: =IF('y = sinh x'!I$28=FALSE,aa,C152+(bb-aa)/200) -> -4 | D153: -26.45079 | J153: 2.04 | K153: 3.91032 | L153: =IF('y = cosh x'!J$27=FALSE,aaa,L152+(bbb-aaa)/200) -> -4 | M153: 26.98095
A154: 2.08 | B154: 3.93977 | C154: =IF('y = sinh x'!I$28=FALSE,aa,C153+(bb-aa)/200) -> -4 | D154: -26.45079 | J154: 2.08 | K154: 4.06470 | L154: =IF('y = cosh x'!J$27=FALSE,aaa,L153+(bbb-aaa)/200) -> -4 | M154: 26.98095
A155: 2.12 | B155: 4.10555 | C155: =IF('y = sinh x'!I$28=FALSE,aa,C154+(bb-aa)/200) -> -4 | D155: -26.45079 | J155: 2.12 | K155: 4.22558 | L155: =IF('y = cosh x'!J$27=FALSE,aaa,L154+(bbb-aaa)/200) -> -4 | M155: 26.98095
A156: 2.16 | B156: 4.27791 | C156: =IF('y = sinh x'!I$28=FALSE,aa,C155+(bb-aa)/200) -> -4 | D156: -26.45079 | J156: 2.16 | K156: 4.39323 | L156: =IF('y = cosh x'!J$27=FALSE,aaa,L155+(bbb-aaa)/200) -> -4 | M156: 26.98095
A157: 2.2 | B157: 4.45711 | C157: =IF('y = sinh x'!I$28=FALSE,aa,C156+(bb-aa)/200) -> -4 | D157: -26.45079 | J157: 2.2 | K157: 4.56791 | L157: =IF('y = cosh x'!J$27=FALSE,aaa,L156+(bbb-aaa)/200) -> -4 | M157: 26.98095
A158: 2.24 | B158: 4.64344 | C158: =IF('y = sinh x'!I$28=FALSE,aa,C157+(bb-aa)/200) -> -4 | D158: -26.45079 | J158: 2.24 | K158: 4.74989 | L158: =IF('y = cosh x'!J$27=FALSE,aaa,L157+(bbb-aaa)/200) -> -4 | M158: 26.98095
A159: 2.28 | B159: 4.83720 | C159: =IF('y = sinh x'!I$28=FALSE,aa,C158+(bb-aa)/200) -> -4 | D159: -26.45079 | J159: 2.28 | K159: 4.93948 | L159: =IF('y = cosh x'!J$27=FALSE,aaa,L158+(bbb-aaa)/200) -> -4 | M159: 26.98095
A160: 2.32 | B160: 5.03870 | C160: =IF('y = sinh x'!I$28=FALSE,aa,C159+(bb-aa)/200) -> -4 | D160: -26.45079 | J160: 2.32 | K160: 5.13697 | L160: =IF('y = cosh x'!J$27=FALSE,aaa,L159+(bbb-aaa)/200) -> -4 | M160: 26.98095
A161: 2.36 | B161: 5.24827 | C161: =IF('y = sinh x'!I$28=FALSE,aa,C160+(bb-aa)/200) -> -4 | D161: -26.45079 | J161: 2.36 | K161: 5.34269 | L161: =IF('y = cosh x'!J$27=FALSE,aaa,L160+(bbb-aaa)/200) -> -4 | M161: 26.98095
A162: 2.4 | B162: 5.46623 | C162: =IF('y = sinh x'!I$28=FALSE,aa,C161+(bb-aa)/200) -> -4 | D162: -26.45079 | J162: 2.4 | K162: 5.55695 | L162: =IF('y = cosh x'!J$27=FALSE,aaa,L161+(bbb-aaa)/200) -> -4 | M162: 26.98095
A163: =A162+(bb-aa)/200 -> 2.44 | B163: 5.69294 | C163: =IF('y = sinh x'!I$28=FALSE,aa,C162+(bb-aa)/200) -> -4 | D163: -26.45079 | J163: =J162+(bbb-aaa)/200 -> 2.44 | K163: 5.78010 | L163: =IF('y = cosh x'!J$27=FALSE,aaa,L162+(bbb-aaa)/200) -> -4 | M163: 26.98095
A164: 2.48 | B164: 5.92876 | C164: =IF('y = sinh x'!I$28=FALSE,aa,C163+(bb-aa)/200) -> -4 | D164: -26.45079 | J164: 2.48 | K164: 6.01250 | L164: =IF('y = cosh x'!J$27=FALSE,aaa,L163+(bbb-aaa)/200) -> -4 | M164: 26.98095
A165: 2.52 | B165: 6.17407 | C165: =IF('y = sinh x'!I$28=FALSE,aa,C164+(bb-aa)/200) -> -4 | D165: -26.45079 | J165: 2.52 | K165: 6.25453 | L165: =IF('y = cosh x'!J$27=FALSE,aaa,L164+(bbb-aaa)/200) -> -4 | M165: 26.98095
A166: 2.56 | B166: 6.42926 | C166: =IF('y = sinh x'!I$28=FALSE,aa,C165+(bb-aa)/200) -> -4 | D166: -26.45079 | J166: 2.56 | K166: 6.50656 | L166: =IF('y = cosh x'!J$27=FALSE,aaa,L165+(bbb-aaa)/200) -> -4 | M166: 26.98095
A167: 2.6 | B167: 6.69473 | C167: =IF('y = sinh x'!I$28=FALSE,aa,C166+(bb-aa)/200) -> -4 | D167: -26.45079 | J167: 2.6 | K167: 6.76901 | L167: =IF('y = cosh x'!J$27=FALSE,aaa,L166+(bbb-aaa)/200) -> -4 | M167: 26.98095
A168: 2.64 | B168: 6.97092 | C168: =IF('y = sinh x'!I$28=FALSE,aa,C167+(bb-aa)/200) -> -4 | D168: -26.45079 | J168: 2.64 | K168: 7.04228 | L168: =IF('y = cosh x'!J$27=FALSE,aaa,L167+(bbb-aaa)/200) -> -4 | M168: 26.98095
A169: 2.68 | B169: 7.25827 | C169: =IF('y = sinh x'!I$28=FALSE,aa,C168+(bb-aa)/200) -> -4 | D169: -26.45079 | J169: 2.68 | K169: 7.32683 | L169: =IF('y = cosh x'!J$27=FALSE,aaa,L168+(bbb-aaa)/200) -> -4 | M169: 26.98095
A170: 2.72 | B170: 7.55722 | C170: =IF('y = sinh x'!I$28=FALSE,aa,C169+(bb-aa)/200) -> -4 | D170: -26.45079 | J170: 2.72 | K170: 7.62310 | L170: =IF('y = cosh x'!J$27=FALSE,aaa,L169+(bbb-aaa)/200) -> -4 | M170: 26.98095
A171: 2.76 | B171: 7.86828 | C171: =IF('y = sinh x'!I$28=FALSE,aa,C170+(bb-aa)/200) -> -4 | D171: -26.45079 | J171: 2.76 | K171: 7.93157 | L171: =IF('y = cosh x'!J$27=FALSE,aaa,L170+(bbb-aaa)/200) -> -4 | M171: 26.98095
A172: 2.8 | B172: 8.19192 | C172: =IF('y = sinh x'!I$28=FALSE,aa,C171+(bb-aa)/200) -> -4 | D172: -26.45079 | J172: 2.8 | K172: 8.25273 | L172: =IF('y = cosh x'!J$27=FALSE,aaa,L171+(bbb-aaa)/200) -> -4 | M172: 26.98095
A173: 2.84 | B173: 8.52867 | C173: =IF('y = sinh x'!I$28=FALSE,aa,C172+(bb-aa)/200) -> -4 | D173: -26.45079 | J173: 2.84 | K173: 8.58710 | L173: =IF('y = cosh x'!J$27=FALSE,aaa,L172+(bbb-aaa)/200) -> -4 | M173: 26.98095
A174: 2.88 | B174: 8.87907 | C174: =IF('y = sinh x'!I$28=FALSE,aa,C173+(bb-aa)/200) -> -4 | D174: -26.45079 | J174: 2.88 | K174: 8.93520 | L174: =IF('y = cosh x'!J$27=FALSE,aaa,L173+(bbb-aaa)/200) -> -4 | M174: 26.98095
A175: 2.92 | B175: 9.24368 | C175: =IF('y = sinh x'!I$28=FALSE,aa,C174+(bb-aa)/200) -> -4 | D175: -26.45079 | J175: 2.92 | K175: 9.29761 | L175: =IF('y = cosh x'!J$27=FALSE,aaa,L174+(bbb-aaa)/200) -> -4 | M175: 26.98095
A176: 2.96 | B176: 9.62308 | C176: =IF('y = sinh x'!I$28=FALSE,aa,C175+(bb-aa)/200) -> -4 | D176: -26.45079 | J176: 2.96 | K176: 9.67490 | L176: =IF('y = cosh x'!J$27=FALSE,aaa,L175+(bbb-aaa)/200) -> -4 | M176: 26.98095
A177: 3 | B177: 10.01787 | C177: =IF('y = sinh x'!I$28=FALSE,aa,C176+(bb-aa)/200) -> -4 | D177: -26.45079 | J177: 3 | K177: 10.06766 | L177: =IF('y = cosh x'!J$27=FALSE,aaa,L176+(bbb-aaa)/200) -> -4 | M177: 26.98095
A178: 3.04 | B178: 10.42870 | C178: =IF('y = sinh x'!I$28=FALSE,aa,C177+(bb-aa)/200) -> -4 | D178: -26.45079 | J178: 3.04 | K178: 10.47654 | L178: =IF('y = cosh x'!J$27=FALSE,aaa,L177+(bbb-aaa)/200) -> -4 | M178: 26.98095
A179: 3.08 | B179: 10.85622 | C179: =IF('y = sinh x'!I$28=FALSE,aa,C178+(bb-aa)/200) -> -4 | D179: -26.45079 | J179: 3.08 | K179: 10.90218 | L179: =IF('y = cosh x'!J$27=FALSE,aaa,L178+(bbb-aaa)/200) -> -4 | M179: 26.98095
A180: 3.12 | B180: 11.30111 | C180: =IF('y = sinh x'!I$28=FALSE,aa,C179+(bb-aa)/200) -> -4 | D180: -26.45079 | J180: 3.12 | K180: 11.34527 | L180: =IF('y = cosh x'!J$27=FALSE,aaa,L179+(bbb-aaa)/200) -> -4 | M180: 26.98095
A181: 3.16 | B181: 11.76409 | C181: =IF('y = sinh x'!I$28=FALSE,aa,C180+(bb-aa)/200) -> -4 | D181: -26.45079 | J181: 3.16 | K181: 11.80651 | L181: =IF('y = cosh x'!J$27=FALSE,aaa,L180+(bbb-aaa)/200) -> -4 | M181: 26.98095
A182: 3.2 | B182: 12.24588 | C182: =IF('y = sinh x'!I$28=FALSE,aa,C181+(bb-aa)/200) -> -4 | D182: -26.45079 | J182: 3.2 | K182: 12.28665 | L182: =IF('y = cosh x'!J$27=FALSE,aaa,L181+(bbb-aaa)/200) -> -4 | M182: 26.98095
A183: 3.24 | B183: 12.74728 | C183: =IF('y = sinh x'!I$28=FALSE,aa,C182+(bb-aa)/200) -> -4 | D183: -26.45079 | J183: 3.24 | K183: 12.78644 | L183: =IF('y = cosh x'!J$27=FALSE,aaa,L182+(bbb-aaa)/200) -> -4 | M183: 26.98095
A184: 3.28 | B184: 13.26907 | C184: =IF('y = sinh x'!I$28=FALSE,aa,C183+(bb-aa)/200) -> -4 | D184: -26.45079 | J184: 3.28 | K184: 13.30670 | L184: =IF('y = cosh x'!J$27=FALSE,aaa,L183+(bbb-aaa)/200) -> -4 | M184: 26.98095
A185: 3.32 | B185: 13.81210 | C185: =IF('y = sinh x'!I$28=FALSE,aa,C184+(bb-aa)/200) -> -4 | D185: -26.45079 | J185: 3.32 | K185: 13.84825 | L185: =IF('y = cosh x'!J$27=FALSE,aaa,L184+(bbb-aaa)/200) -> -4 | M185: 26.98095
A186: 3.36 | B186: 14.37723 | C186: =IF('y = sinh x'!I$28=FALSE,aa,C185+(bb-aa)/200) -> -4 | D186: -26.45079 | J186: 3.36 | K186: 14.41196 | L186: =IF('y = cosh x'!J$27=FALSE,aaa,L185+(bbb-aaa)/200) -> -4 | M186: 26.98095
A187: 3.4 | B187: 14.96536 | C187: =IF('y = sinh x'!I$28=FALSE,aa,C186+(bb-aa)/200) -> -4 | D187: -26.45079 | J187: 3.4 | K187: 14.99874 | L187: =IF('y = cosh x'!J$27=FALSE,aaa,L186+(bbb-aaa)/200) -> -4 | M187: 26.98095
A188: 3.44 | B188: 15.57745 | C188: =IF('y = sinh x'!I$28=FALSE,aa,C187+(bb-aa)/200) -> -4 | D188: -26.45079 | J188: 3.44 | K188: 15.60951 | L188: =IF('y = cosh x'!J$27=FALSE,aaa,L187+(bbb-aaa)/200) -> -4 | M188: 26.98095
A189: 3.48 | B189: 16.21446 | C189: =IF('y = sinh x'!I$28=FALSE,aa,C188+(bb-aa)/200) -> -4 | D189: -26.45079 | J189: 3.48 | K189: 16.24526 | L189: =IF('y = cosh x'!J$27=FALSE,aaa,L188+(bbb-aaa)/200) -> -4 | M189: 26.98095
A190: 3.52 | B190: 16.87741 | C190: =IF('y = sinh x'!I$28=FALSE,aa,C189+(bb-aa)/200) -> -4 | D190: -26.45079 | J190: 3.52 | K190: 16.90701 | L190: =IF('y = cosh x'!J$27=FALSE,aaa,L189+(bbb-aaa)/200) -> -4 | M190: 26.98095
A191: 3.56 | B191: 17.56738 | C191: =IF('y = sinh x'!I$28=FALSE,aa,C190+(bb-aa)/200) -> -4 | D191: -26.45079 | J191: 3.56 | K191: 17.59582 | L191: =IF('y = cosh x'!J$27=FALSE,aaa,L190+(bbb-aaa)/200) -> -4 | M191: 26.98095
A192: 3.6 | B192: 18.28546 | C192: =IF('y = sinh x'!I$28=FALSE,aa,C191+(bb-aa)/200) -> -4 | D192: -26.45079 | J192: 3.6 | K192: 18.31278 | L192: =IF('y = cosh x'!J$27=FALSE,aaa,L191+(bbb-aaa)/200) -> -4 | M192: 26.98095
A193: 3.64 | B193: 19.03279 | C193: =IF('y = sinh x'!I$28=FALSE,aa,C192+(bb-aa)/200) -> -4 | D193: -26.45079 | J193: 3.64 | K193: 19.05904 | L193: =IF('y = cosh x'!J$27=FALSE,aaa,L192+(bbb-aaa)/200) -> -4 | M193: 26.98095
A194: 3.68 | B194: 19.81059 | C194: =IF('y = sinh x'!I$28=FALSE,aa,C193+(bb-aa)/200) -> -4 | D194: -26.45079 | J194: 3.68 | K194: 19.83581 | L194: =IF('y = cosh x'!J$27=FALSE,aaa,L193+(bbb-aaa)/200) -> -4 | M194: 26.98095
A195: =A194+(bb-aa)/200 -> 3.72 | B195: =SINH(A195) -> 20.62008 | C195: =IF('y = sinh x'!I$28=FALSE,aa,C194+(bb-aa)/200) -> -4 | D195: =C195+C195^3/6+C195^5/120+C195^7/5040 -> -26.45079 | J195: =J194+(bbb-aaa)/200 -> 3.72 | K195: =COSH(J195) -> 20.64431 | L195: =IF('y = cosh x'!J$27=FALSE,aaa,L194+(bbb-aaa)/200) -> -4 | M195: =1+L195^2/2+L195^4/24+L195^6/720+L195^8/5040/8 -> 26.98095
A196: 3.76 | B196: 21.46257 | C196: =IF('y = sinh x'!I$28=FALSE,aa,C195+(bb-aa)/200) -> -4 | D196: -26.45079 | J196: 3.76 | K196: 21.48585 | L196: =IF('y = cosh x'!J$27=FALSE,aaa,L195+(bbb-aaa)/200) -> -4 | M196: 26.98095
A197: 3.8 | B197: 22.33941 | C197: =IF('y = sinh x'!I$28=FALSE,aa,C196+(bb-aa)/200) -> -4 | D197: -26.45079 | J197: 3.8 | K197: 22.36178 | L197: =IF('y = cosh x'!J$27=FALSE,aaa,L196+(bbb-aaa)/200) -> -4 | M197: 26.98095
A198: 3.84 | B198: 23.25199 | C198: =IF('y = sinh x'!I$28=FALSE,aa,C197+(bb-aa)/200) -> -4 | D198: -26.45079 | J198: 3.84 | K198: 23.27348 | L198: =IF('y = cosh x'!J$27=FALSE,aaa,L197+(bbb-aaa)/200) -> -4 | M198: 26.98095
A199: 3.88 | B199: 24.20178 | C199: =IF('y = sinh x'!I$28=FALSE,aa,C198+(bb-aa)/200) -> -4 | D199: -26.45079 | J199: 3.88 | K199: 24.22243 | L199: =IF('y = cosh x'!J$27=FALSE,aaa,L198+(bbb-aaa)/200) -> -4 | M199: 26.98095
A200: 3.92 | B200: 25.19030 | C200: =IF('y = sinh x'!I$28=FALSE,aa,C199+(bb-aa)/200) -> -4 | D200: -26.45079 | J200: 3.92 | K200: 25.21014 | L200: =IF('y = cosh x'!J$27=FALSE,aaa,L199+(bbb-aaa)/200) -> -4 | M200: 26.98095
... 2 more rows
